bitfinex/quotes_SOLUSD_20241209
["timestamp","ask_amount","ask_price","bid_price","bid_amount"]
[1733722188099,23.776884,232.34,232.29,0.92035883]
[1733722188298,0.80572621,232.33,232.29,0.92035883]
[1733722188495,0.80572621,232.35,232.29,0.92035883]
[1733722188700,23.776884,232.33,232.29,0.92035883]
[1733722188994,0.80572621,232.32,232.29,0.92035883]
[1733722192311,0.80572621,232.32,232.31,0.92035883]
[1733722192897,23.776884,232.36,232.31,0.92035883]
[1733722193126,0.80572621,232.35,232.33,0.92035883]
[1733722193721,0.80572621,232.37,232.33,0.92035883]
[1733722195114,23.776884,232.36,232.33,0.92035883]
[1733722195315,0.80572621,232.35,232.33,0.92035883]
[1733722195898,0.80572621,232.37,232.33,0.92035883]
[1733722197820,0.80572621,232.37,232.35,0.92035883]
[1733722199121,3.99021274,232.38,232.35,0.92035883]
[1733722199516,23.776884,232.41,232.35,0.92035883]
[1733722199717,23.776884,232.39,232.35,0.92035883]
[1733722199921,0.80572621,232.38,232.35,0.92035883]
[1733722200133,24.58261021,232.41,232.35,0.92035883]
[1733722204741,23.776884,232.37,232.3,0.92035883]
[1733722204944,23.776884,232.35,232.3,0.92035883]
[1733722205241,0.80572621,232.34,232.3,0.92035883]
[1733722205673,0.80572621,232.34,232.22,80.7]
[1733722205674,23.776884,232.33,232.26,0.92035883]
[1733722205996,23.776884,232.31,232.26,0.92035883]
[1733722206312,0.80572621,232.3,232.26,0.92035883]
[1733722207346,0.80572621,232.3,232.28,0.92035883]
[1733722208139,3.99021274,232.33,232.28,0.92035883]
[1733722208341,0.80572621,232.32,232.3,0.92035883]
[1733722208544,3.99021274,232.33,232.3,0.92035883]
[1733722208773,0.80572621,232.32,232.3,0.92035883]
[1733722209550,20.12549,232.37,232.3,0.92035883]
[1733722209828,0.80572621,232.36,232.3,0.92035883]
[1733722210360,23.776884,232.35,232.3,0.92035883]
[1733722210575,0.80572621,232.34,232.3,0.92035883]
[1733722211064,23.776884,232.33,232.3,0.92035883]
[1733722211286,0.80572621,232.32,232.3,0.92035883]
[1733722211766,0.80572621,232.36,232.3,0.92035883]
[1733722211961,0.80572621,232.36,232.23,0.64573221]
[1733722211962,0.80572621,232.36,232.32,0.92035883]
[1733722212864,24.58261021,232.37,232.32,0.92035883]
[1733722213205,0.12549,232.36,232.28,0.92035883]
[1733722213534,23.776884,232.34,232.28,0.92035883]
[1733722213681,0.80572621,232.33,232.26,0.92035883]
[1733722213862,23.776884,232.32,232.26,0.92035883]
[1733722214058,23.776884,232.3,232.26,0.92035883]
[1733722214264,0.80572621,232.29,232.26,0.92035883]
[1733722214564,23.776884,232.3,232.26,0.92035883]
[1733722214765,0.80572621,232.29,232.26,0.92035883]
[1733722215172,0.80572621,232.29,232.25,0.92035883]
[1733722218988,23.776884,232.28,232.25,0.92035883]
[1733722219206,0.80572621,232.27,232.23,0.92035883]
[1733722220099,23.776884,232.26,232.23,0.92035883]
[1733722220319,0.80572621,232.25,232.2,0.92035883]
[1733722220494,0.80572621,232.25,232.22,0.92035883]
[1733722223814,20.0,232.32,232.22,0.92035883]
[1733722223815,23.776884,232.27,232.22,0.92035883]
[1733722223982,0.80572621,232.26,232.22,0.92035883]
[1733722224523,0.93121621,232.31,232.25,0.92035883]
[1733722224886,23.776884,232.3,232.25,0.92035883]
[1733722225093,0.80572621,232.29,232.25,0.92035883]
[1733722226194,0.80572621,232.32,232.27,0.92035883]
[1733722226498,0.80572621,232.34,232.3,0.92035883]
[1733722231195,0.80572621,232.34,232.28,0.92035883]
[1733722232425,0.80572621,232.34,232.3,0.92035883]
[1733722232996,24.83359021,232.38,232.3,0.92035883]
[1733722235590,0.80572621,232.38,232.3,0.92035883]
[1733722235795,0.80572621,232.39,232.33,0.92035883]
[1733722239268,23.776884,232.38,232.31,0.92035883]
[1733722239463,0.80572621,232.37,232.31,0.92035883]
[1733722239676,0.80572621,232.37,232.24,7.7486]
[1733722239677,23.902374,232.36,232.29,0.92035883]
[1733722239894,0.80572621,232.35,232.29,0.92035883]
[1733722240797,0.80572621,232.36,232.29,0.92035883]
[1733722241116,23.776884,232.35,232.29,0.92035883]
[1733722241270,0.80572621,232.34,232.29,0.92035883]
[1733722241473,0.93121621,232.37,232.29,0.92035883]
[1733722241994,23.776884,232.36,232.29,0.92035883]
[1733722242310,0.80572621,232.35,232.29,0.92035883]
[1733722244510,0.12549,232.33,232.25,0.92035883]
[1733722244682,23.776884,232.32,232.25,0.92035883]
[1733722244884,0.80572621,232.31,232.25,0.92035883]
[1733722245902,23.776884,232.32,232.25,0.92035883]
[1733722246116,0.80572621,232.31,232.25,0.92035883]
[1733722246803,0.80572621,232.31,232.27,0.92035883]
[1733722246998,0.93121621,232.33,232.27,0.92035883]
[1733722247383,23.776884,232.32,232.27,0.92035883]
[1733722247711,0.80572621,232.31,232.27,0.92035883]
[1733722248512,0.93121621,232.33,232.27,0.92035883]
[1733722248882,23.776884,232.32,232.27,0.92035883]
[1733722249082,0.80572621,232.31,232.27,0.92035883]
[1733722249299,0.80572621,232.33,232.27,0.92035883]
[1733722254896,0.80572621,232.34,232.27,0.92035883]
[1733722257384,0.80572621,232.35,232.27,0.92035883]
[1733722258294,24.70810021,232.37,232.27,0.92035883]
[1733722258803,20.0,232.34,232.27,0.92035883]
[1733722259014,0.80572621,232.33,232.27,0.92035883]
[1733722262930,0.80572621,232.4,232.36,0.92035883]
[1733722263220,10.81506281,232.51,232.39,0.92035883]
[1733722263421,0.12549,232.49,232.39,0.92035883]
[1733722263616,0.12549,232.47,232.39,0.92035883]
[1733722264702,0.64729803,232.47,232.39,0.92035883]
[1733722266009,0.12549,232.45,232.39,0.92035883]
[1733722266205,23.776884,232.44,232.39,0.92035883]
[1733722266407,0.52180803,232.43,232.39,0.92035883]
[1733722272837,20.0,232.41,232.36,7.8941]
[1733722273036,0.52180803,232.4,232.36,7.8941]
[1733722273433,0.52180803,232.4,232.37,0.92035883]
[1733722275373,0.52180803,232.43,232.37,0.92035883]
[1733722275517,0.52180803,232.43,232.36,7.8941]
[1733722275518,0.52180803,232.43,232.4,0.92035883]
[1733722275842,0.52180803,232.46,232.4,0.92035883]
[1733722276934,24.29869203,232.46,232.4,0.92035883]
[1733722277233,24.29869203,232.46,232.38,0.92035883]
[1733722277441,23.902374,232.45,232.38,0.92035883]
[1733722277642,0.52180803,232.44,232.38,0.92035883]
[1733722277942,0.52180803,232.44,232.36,8.81445883]
[1733722277943,23.902374,232.43,232.36,8.81445883]
[1733722278175,24.29869203,232.42,232.36,8.81445883]
[1733722280115,24.29869203,232.42,232.38,0.92035883]
[1733722281146,0.52180803,232.42,232.4,0.92035883]
[1733722281317,24.42418203,232.46,232.4,0.92035883]
[1733722284722,24.42418203,232.46,232.42,0.92035883]
[1733722286025,0.52180803,232.46,232.42,0.92035883]
[1733722288154,0.52180803,232.47,232.44,0.92035883]
[1733722288940,23.776884,232.49,232.44,0.92035883]
[1733722288941,0.52180803,232.48,232.44,0.92035883]
[1733722289324,0.52180803,232.49,232.44,0.92035883]
[1733722289521,20.0,232.51,232.44,9.08245883]
[1733722289720,0.52180803,232.5,232.44,9.08245883]
[1733722289944,0.64729803,232.54,232.44,9.08245883]
[1733722290143,0.52180803,232.54,232.47,0.92035883]
[1733722290925,0.52180803,232.56,232.47,0.92035883]
[1733722291336,20.0,232.54,232.47,0.92035883]
[1733722291547,0.52180803,232.53,232.45,0.92035883]
[1733722292439,20.0,232.5,232.45,0.92035883]
[1733722292631,24.29869203,232.49,232.45,0.92035883]
[1733722296738,24.29869203,232.49,232.44,8.1621]
[1733722298558,24.29869203,232.49,232.45,0.92035883]
[1733722302063,24.29869203,232.49,232.43,0.92035883]
[1733722303448,24.29869203,232.49,232.38,8.0569]
[1733722303449,24.29869203,232.49,232.45,0.92035883]
[1733722304037,24.29869203,232.49,232.43,0.92035883]
[1733722304242,0.12549,232.48,232.43,0.92035883]
[1733722304448,23.902374,232.48,232.43,0.92035883]
[1733722304769,0.52180803,232.47,232.43,0.92035883]
[1733722304934,24.29869203,232.47,232.43,0.92035883]
[1733722306380,0.12549,232.46,232.41,0.92035883]
[1733722306657,0.12549,232.44,232.4,0.92035883]
[1733722306858,23.902374,232.44,232.4,0.92035883]
[1733722307045,24.29869203,232.43,232.4,0.92035883]
[1733722311871,0.52180803,232.49,232.4,0.92035883]
[1733722312240,0.52180803,232.49,232.43,0.92035883]
[1733722312655,20.0,232.48,232.43,0.92035883]
[1733722312865,0.52180803,232.47,232.43,0.92035883]
[1733722313370,24.29869203,232.47,232.43,0.92035883]
[1733722323559,0.52180803,232.47,232.43,0.92035883]
[1733722323874,24.42418203,232.49,232.43,0.92035883]
[1733722326880,0.52180803,232.49,232.43,0.92035883]
[1733722327053,20.0,232.48,232.43,0.92035883]
[1733722332162,0.52180803,232.47,232.43,0.92035883]
[1733722332574,20.0,232.48,232.43,0.92035883]
[1733722333075,0.52180803,232.47,232.43,0.92035883]
[1733722336993,24.29869203,232.47,232.41,0.92035883]
[1733722338601,24.29869203,232.47,232.38,8.0569]
[1733722338602,24.29869203,232.47,232.43,0.92035883]
[1733722341143,24.29869203,232.47,232.43,0.97279021]
[1733722350224,24.29869203,232.47,232.43,0.05243138]
[1733722352928,0.12549,232.46,232.43,0.05243138]
[1733722353108,23.902374,232.46,232.43,0.05243138]
[1733722353308,24.29869203,232.45,232.43,0.05243138]
[1733722355432,23.902374,232.44,232.43,0.05243138]
[1733722358140,0.12549,232.46,232.43,0.05243138]
[1733722358333,23.776884,232.46,232.43,0.05243138]
[1733722358532,0.52180803,232.45,232.43,0.05243138]
[1733722360127,0.52180803,232.48,232.43,0.05243138]
[1733722360360,0.52180803,232.48,232.44,0.92035883]
[1733722360535,24.42418203,232.53,232.44,0.92035883]
[1733722361048,0.12549,232.52,232.44,0.92035883]
[1733722361555,20.0,232.5,232.44,0.92035883]
[1733722361751,24.42418203,232.49,232.44,0.92035883]
[1733722363460,24.29869203,232.49,232.44,0.92035883]
[1733722368433,0.12549,232.48,232.44,0.92035883]
[1733722368750,0.12549,232.48,232.43,0.05243138]
[1733722383797,23.776884,232.45,232.4,0.92035883]
[1733722384009,0.52180803,232.44,232.4,0.92035883]
[1733722385777,23.902374,232.49,232.4,0.92035883]
[1733722385984,20.0,232.46,232.4,0.92035883]
[1733722386326,0.52180803,232.45,232.4,0.92035883]
[1733722389423,0.52180803,232.45,232.42,0.92035883]
[1733722389728,0.52180803,232.51,232.44,0.92035883]
[1733722390612,0.52180803,232.53,232.44,0.92035883]
[1733722390923,23.776884,232.5,232.44,0.92035883]
[1733722391118,0.52180803,232.49,232.44,0.92035883]
[1733722395032,0.52180803,232.5,232.44,0.92035883]
[1733722396044,20.0,232.52,232.47,0.92035883]
[1733722396245,0.52180803,232.51,232.47,0.92035883]
[1733722396413,24.29869203,232.54,232.47,0.92035883]
[1733722396615,20.0,232.51,232.47,0.92035883]
[1733722396836,6.73542164,232.58,232.52,0.92035883]
[1733722397147,0.52180803,232.57,232.54,0.92035883]
[1733722397442,15.10434329,232.65,232.54,0.92035883]
[1733722397443,0.52180803,232.59,232.54,0.92035883]
[1733722397651,0.52180803,232.63,232.54,0.92035883]
[1733722397853,0.12549,232.62,232.54,0.92035883]
[1733722398033,0.52180803,232.61,232.54,0.92035883]
[1733722398543,23.902374,232.6,232.54,0.92035883]
[1733722398741,0.12549,232.58,232.54,0.92035883]
[1733722399445,23.902374,232.58,232.54,0.92035883]
[1733722399615,20.52180803,232.57,232.54,0.92035883]
[1733722407357,0.52180803,232.57,232.54,0.92035883]
[1733722407560,0.52180803,232.59,232.56,0.92035883]
[1733722408068,0.52180803,232.62,232.56,0.92035883]
[1733722409071,23.902374,232.61,232.56,0.92035883]
[1733722409271,24.29869203,232.6,232.56,0.92035883]
[1733722412610,24.29869203,232.6,232.5,1.53]
[1733722413181,0.12549,232.59,232.5,1.53]
[1733722413402,24.29869203,232.6,232.5,1.53]
[1733722413604,23.902374,232.59,232.5,1.53]
[1733722413819,24.29869203,232.58,232.5,1.53]
[1733722415316,23.902374,232.57,232.5,1.53]
[1733722415495,24.29869203,232.56,232.5,1.53]
[1733722420816,0.52180803,232.56,232.5,1.53]
[1733722421012,20.0,232.58,232.5,1.53]
[1733722421216,0.52180803,232.57,232.5,1.53]
[1733722422202,0.12549,232.56,232.5,1.53]
[1733722422928,23.902374,232.56,232.5,1.53]
[1733722423133,0.52180803,232.55,232.5,1.53]
[1733722427425,24.42418203,232.61,232.5,1.53]
[1733722427659,20.0,232.58,232.5,1.53]
[1733722427819,0.52180803,232.57,232.5,1.53]
[1733722431531,24.29869203,232.57,232.5,1.53]
[1733722432355,0.52180803,232.57,232.5,1.53]
[1733722432731,0.52180803,232.6,232.5,1.53]
[1733722432940,20.0,232.57,232.5,1.53]
[1733722433140,0.52180803,232.56,232.5,1.53]
[1733722436139,24.29869203,232.56,232.5,1.53]
[1733722437969,0.52180803,232.56,232.5,1.53]
[1733722438173,24.29869203,232.6,232.5,1.53]
[1733722438469,20.0,232.57,232.5,1.53]
[1733722438670,0.52180803,232.56,232.5,1.53]
[1733722441640,24.29869203,232.56,232.5,1.53]
[1733722449253,0.52180803,232.56,232.5,1.53]
[1733722449454,20.0,232.58,232.5,1.53]
[1733722449657,0.52180803,232.57,232.5,1.53]
[1733722449858,0.52180803,232.59,232.5,1.53]
[1733722450674,20.52180803,232.59,232.5,1.53]
[1733722451548,0.52180803,232.59,232.5,1.53]
[1733722451752,20.52180803,232.59,232.5,1.53]
[1733722456187,0.52180803,232.59,232.5,1.53]
[1733722457066,20.52180803,232.59,232.5,1.53]
[1733722457485,20.0,232.58,232.5,1.53]
[1733722457663,0.52180803,232.57,232.5,1.53]
[1733722457986,22.26777362,232.6,232.5,1.53]
[1733722458174,20.52180803,232.6,232.5,1.53]
[1733722459481,0.52180803,232.6,232.5,1.53]
[1733722459688,20.52180803,232.6,232.5,1.53]
[1733722461099,0.52180803,232.6,232.5,1.53]
[1733722461506,0.52180803,232.63,232.51,6.0197]
[1733722461695,0.52180803,232.63,232.52,0.64491754]
[1733722462067,0.52180803,232.63,232.53,1.6549]
[1733722462307,0.52180803,232.64,232.53,1.6549]
[1733722462594,20.0,232.62,232.54,0.64487443]
[1733722464059,20.0,232.62,232.53,1.6549]
[1733722464261,0.52180803,232.64,232.54,7.15068255]
[1733722464460,0.52180803,232.65,232.54,7.15068255]
[1733722464896,4.51202077,232.66,232.54,7.15068255]
[1733722465067,0.52180803,232.66,232.56,0.25098]
[1733722465282,0.52180803,232.66,232.56,0.89576615]
[1733722466104,0.52180803,232.67,232.56,0.89576615]
[1733722467001,0.52180803,232.68,232.56,0.89576615]
[1733722467406,20.0,232.66,232.56,0.89576615]
[1733722467788,0.52180803,232.69,232.58,0.25098]
[1733722468096,0.52180803,232.72,232.6,0.25098]
[1733722468299,0.52180803,232.73,232.63,7.9697]
[1733722468510,0.52180803,232.74,232.63,8.61429008]
[1733722469413,0.52180803,232.76,232.63,7.9697]
[1733722469610,20.0,232.73,232.63,7.9697]
[1733722469802,0.52180803,232.73,232.64,0.64459534]
[1733722470500,20.0,232.75,232.64,0.64459534]
[1733722470808,0.52180803,232.76,232.64,0.64459534]
[1733722471179,0.52180803,232.77,232.65,0.25098]
[1733722471379,0.52180803,232.77,232.69,0.25098]
[1733722471617,31.75347535,232.85,232.68,2.15108141]
[1733722471618,0.52180803,232.82,232.68,2.15108141]
[1733722471786,0.52180803,232.82,232.68,1.5067]
[1733722471979,0.52180803,232.82,232.69,0.25098]
[1733722472609,0.52180803,232.84,232.69,0.25098]
[1733722472914,20.0,232.82,232.69,0.25098]
[1733722473208,0.52180803,232.81,232.69,0.25098]
[1733722474089,0.52180803,232.81,232.69,0.89540932]
[1733722474499,20.0,232.8,232.69,0.89540932]
[1733722476610,0.52180803,232.82,232.69,0.89540932]
[1733722476784,0.52180803,232.83,232.71,0.25098]
[1733722476983,0.52180803,232.83,232.72,0.64432309]
[1733722477512,0.52180803,232.83,232.73,1.589]
[1733722477731,0.52180803,232.84,232.73,1.589]
[1733722478088,20.52180803,232.84,232.73,1.589]
[1733722478986,20.0,232.8,232.73,1.589]
[1733722479187,0.52180803,232.79,232.73,1.589]
[1733722480700,24.29869203,232.79,232.73,1.589]
[1733722481536,20.0,232.76,232.7,6.5559]
[1733722481821,0.52180803,232.75,232.7,6.5559]
[1733722482828,0.12549,232.74,232.7,6.5559]
[1733722483128,23.902374,232.74,232.68,1.6589]
[1733722483329,0.52180803,232.73,232.68,1.6589]
[1733722484232,3.99021274,232.79,232.68,1.6589]
[1733722484233,0.52180803,232.75,232.68,1.6589]
[1733722490561,0.12549,232.74,232.68,1.6589]
[1733722490757,23.902374,232.74,232.68,1.6589]
[1733722491047,0.52180803,232.73,232.68,1.6589]
[1733722491624,0.52180803,232.75,232.68,1.6589]
[1733722492730,0.52180803,232.76,232.68,1.6589]
[1733722493051,23.902374,232.75,232.68,1.6589]
[1733722493246,0.52180803,232.74,232.68,1.6589]
[1733722493422,24.29869203,232.74,232.68,1.6589]
[1733722494252,0.52180803,232.74,232.68,1.6589]
[1733722494547,0.52180803,232.75,232.68,1.6589]
[1733722495520,0.52180803,232.76,232.68,1.6589]
[1733722497847,24.29869203,232.76,232.68,1.6589]
[1733722498659,24.29869203,232.76,232.68,1.552193]
[1733722501152,23.902374,232.72,232.65,6.0058]
[1733722501326,0.52180803,232.71,232.65,6.0058]
[1733722505746,20.0,232.69,232.65,6.0058]
[1733722506069,0.52180803,232.68,232.65,6.0058]
[1733722510740,0.52180803,232.68,232.63,1.5807]
[1733722512947,0.52180803,232.68,232.6,6.0875]
[1733722519853,20.0,232.69,232.6,6.0875]
[1733722520777,0.52180803,232.68,232.6,6.0875]
[1733722541103,3.99029509,232.75,232.63,24.027864]
[1733722541297,0.52180803,232.75,232.65,0.25098]
[1733722541492,0.52180803,232.81,232.66,0.64454247]
[1733722541693,0.52180803,232.81,232.64,7.8601]
[1733722542422,20.0,232.78,232.64,7.8601]
[1733722542622,0.52180803,232.77,232.64,7.8601]
[1733722543522,24.29869203,232.77,232.64,7.8601]
[1733722543727,20.0,232.74,232.64,7.8601]
[1733722544056,0.52180803,232.73,232.64,7.8601]
[1733722548002,20.0,232.7,232.64,7.8601]
[1733722548224,0.52180803,232.69,232.64,7.8601]
[1733722578042,20.0,232.7,232.64,7.8601]
[1733722578454,0.52180803,232.69,232.64,7.8601]
[1733722597703,0.12549,232.68,232.59,6.1095]
[1733722597998,23.902374,232.68,232.59,6.1095]
[1733722598206,0.52180803,232.67,232.59,6.1095]
[1733722599482,20.0,232.65,232.59,6.1095]
[1733722599796,20.0,232.6,232.47,0.64489671]
[1733722599979,0.52180803,232.59,232.47,0.64489671]
[1733722601402,0.52180803,232.59,232.44,0.64507106]
[1733722602226,20.0,232.56,232.44,0.64507106]
[1733722602391,0.52180803,232.55,232.42,0.64509364]
[1733722602585,0.52180803,232.55,232.43,6.2824]
[1733722602803,0.52180803,232.55,232.44,1.5009]
[1733722603709,0.52180803,232.58,232.45,0.89613395]
[1733722607090,20.0,232.6,232.45,0.89613395]
[1733722607288,0.52180803,232.59,232.45,0.89613395]
[1733722609408,24.29869203,232.59,232.45,0.25098]
[1733722610215,24.29869203,232.59,232.44,1.5009]
[1733722610216,23.902374,232.58,232.44,1.5009]
[1733722610419,24.29869203,232.57,232.44,1.5009]
[1733722614827,20.0,232.54,232.44,1.5009]
[1733722615128,0.52180803,232.53,232.44,1.5009]
[1733722617032,24.29869203,232.53,232.44,1.5009]
[1733722617232,0.52180803,232.56,232.45,0.6452759]
[1733722617448,0.52180803,232.64,232.46,6.3739]
[1733722617644,0.52180803,232.64,232.47,0.64505514]
[1733722617846,0.12549,232.63,232.47,0.64505514]
[1733722618153,0.52180803,232.62,232.47,0.64505514]
[1733722618521,20.52180803,232.62,232.47,0.64505514]
[1733722618744,0.52180803,232.62,232.49,0.25098]
[1733722618956,0.52180803,232.64,232.49,0.89596032]
[1733722619455,1.70614391,232.65,232.5,6.3739]
[1733722619629,0.52180803,232.64,232.51,0.64496795]
[1733722619829,0.64729803,232.7,232.51,0.64496795]
[1733722620055,5.64729803,232.7,232.51,0.64496795]
[1733722620425,0.12549,232.68,232.51,0.64496795]
[1733722620624,20.0,232.63,232.51,0.64496795]
[1733722620949,0.52180803,232.62,232.51,0.64496795]
[1733722622440,0.52180803,232.62,232.52,1.5978]
[1733722622647,0.52180803,232.64,232.53,0.64489351]
[1733722622834,0.52180803,232.7,232.55,6.6465]
[1733722623027,0.52180803,232.7,232.55,7.29131377]
[1733722623647,0.52180803,232.7,232.55,6.6465]
[1733722624171,20.0,232.67,232.55,6.6465]
[1733722624335,20.52180803,232.66,232.55,6.6465]
[1733722624528,0.52180803,232.66,232.55,6.6465]
[1733722624734,24.29869203,232.66,232.55,6.6465]
[1733722626651,0.52180803,232.66,232.57,1.5036]
[1733722626827,0.52180803,232.7,232.57,1.5036]
[1733722627370,0.52180803,232.73,232.58,0.89577855]
[1733722628026,0.52180803,232.76,232.59,6.2324]
[1733722628261,0.52180803,232.76,232.6,0.64470322]
[1733722628562,20.52180803,232.76,232.6,0.64470322]
[1733722629363,20.0,232.72,232.6,0.64470322]
[1733722629546,0.52180803,232.71,232.6,0.64470322]
[1733722631042,0.52180803,232.74,232.61,1.6458]
[1733722631270,0.52180803,232.74,232.62,0.64461088]
[1733722632275,0.64729803,232.76,232.62,0.64461088]
[1733722632680,23.776884,232.75,232.62,0.64461088]
[1733722632843,0.52180803,232.74,232.62,0.64461088]
[1733722643686,0.52180803,232.76,232.64,7.6833]
[1733722643983,23.902374,232.79,232.65,0.64453354]
[1733722644164,0.52180803,232.78,232.65,0.64453354]
[1733722644367,24.29869203,232.78,232.65,0.64453354]
[1733722644573,0.52180803,232.78,232.66,0.25098]
[1733722644784,3.7968414,232.81,232.66,0.25098]
[1733722644785,0.52180803,232.8,232.67,0.64449224]
[1733722645894,20.0,232.79,232.67,0.64449224]
[1733722646093,0.52180803,232.78,232.68,1.6561]
[1733722646592,0.52180803,232.78,232.69,6.1082]
[1733722646797,0.52180803,232.8,232.7,0.64446786]
[1733722647283,24.42418203,232.86,232.7,0.64446786]
[1733722647465,0.52180803,232.86,232.71,0.25098]
[1733722647795,0.52180803,232.86,232.73,1.90298]
[1733722649681,0.52180803,232.86,232.73,1.652]
[1733722649682,20.0,232.83,232.73,1.652]
[1733722649994,0.52180803,232.82,232.73,1.652]
[1733722650179,20.0,232.81,232.73,1.652]
[1733722650376,0.52180803,232.8,232.73,1.652]
[1733722656992,0.52180803,232.8,232.69,6.1082]
[1733722656993,23.902374,232.76,232.69,6.1082]
[1733722657198,0.52180803,232.75,232.69,6.1082]
[1733722657600,20.0,232.76,232.69,6.1082]
[1733722657780,0.52180803,232.75,232.69,6.1082]
[1733722658396,0.52180803,232.78,232.69,6.1082]
[1733722663001,23.902374,232.77,232.69,6.1082]
[1733722663200,24.29869203,232.76,232.69,6.1082]
[1733722663727,24.027864,232.75,232.69,6.1082]
[1733722663888,24.29869203,232.74,232.69,6.1082]
[1733722665322,24.29869203,232.74,232.67,1.6106]
[1733722668417,20.0,232.71,232.67,1.6106]
[1733722668620,0.52180803,232.7,232.67,1.6106]
[1733722672830,24.027864,232.69,232.57,7.8451]
[1733722673011,0.12549,232.67,232.57,7.8451]
[1733722673441,23.902374,232.67,232.57,7.8451]
[1733722673611,0.52180803,232.66,232.57,7.8451]
[1733722675653,24.027864,232.65,232.57,7.8451]
[1733722675856,20.0,232.62,232.57,7.8451]
[1733722676147,0.52180803,232.61,232.57,7.8451]
[1733722678657,0.52180803,232.61,232.48,0.12549]
[1733722682538,24.29869203,232.61,232.47,8.2687]
[1733722684768,24.29869203,232.61,232.48,0.64503163]
[1733722684769,0.52180803,232.61,232.48,0.64503163]
[1733722685054,20.0,232.6,232.48,0.64503163]
[1733722685359,0.52180803,232.59,232.48,0.64503163]
[1733722688561,0.52180803,232.59,232.47,8.2687]
[1733722688769,24.29869203,232.59,232.47,8.2687]
[1733722698379,0.52180803,232.59,232.48,0.6450991]
[1733722698682,0.52180803,232.63,232.48,0.6450991]
[1733722698846,20.0,232.6,232.48,0.6450991]
[1733722699045,0.52180803,232.59,232.48,0.6450991]
[1733722699994,24.54967203,232.61,232.48,0.6450991]
[1733722701862,0.52180803,232.61,232.48,0.6450991]
[1733722702257,20.0,232.61,232.48,0.6450991]
[1733722702455,0.52180803,232.6,232.48,0.6450991]
[1733722703057,0.52180803,232.63,232.49,7.69979]
[1733722703272,0.52180803,232.63,232.5,0.64492656]
[1733722703586,0.64729803,232.67,232.5,0.64492656]
[1733722704292,0.12549,232.65,232.5,0.64492656]
[1733722704462,20.0,232.61,232.5,0.64492656]
[1733722704663,0.52180803,232.6,232.49,7.5743]
[1733722705282,24.29869203,232.62,232.49,7.5743]
[1733722709169,24.29869203,232.62,232.49,8.21932802]
[1733722710168,24.29869203,232.62,232.49,7.5743]
[1733722710369,20.0,232.59,232.49,7.5743]
[1733722710599,0.52180803,232.58,232.49,7.5743]
[1733722729341,0.52180803,232.58,232.5,0.64501242]
[1733722729944,0.52180803,232.66,232.52,6.5868]
[1733722730121,0.52180803,232.66,232.53,0.6448714]
[1733722731235,0.64729803,232.67,232.53,0.6448714]
[1733722731445,23.902374,232.66,232.53,0.6448714]
[1733722731627,0.52180803,232.65,232.53,0.6448714]
[1733722733309,20.0,232.63,232.52,6.5868]
[1733722733606,0.52180803,232.62,232.52,6.5868]
[1733722735040,0.52180803,232.62,232.52,7.23176006]
[1733722750837,0.52180803,232.62,232.52,6.5868]
[1733722751152,0.25098,232.61,232.52,6.5868]
[1733722751355,0.52180803,232.62,232.52,6.5868]
[1733722753567,0.25098,232.61,232.52,6.5868]
[1733722753774,0.52180803,232.6,232.52,6.5868]
[1733722759588,2.2537357,232.6,232.52,6.5868]
[1733722759994,0.25098,232.59,232.51,1.5176]
[1733722760208,0.52180803,232.58,232.51,1.5176]
[1733722760856,0.25098,232.57,232.37,114.42598737]
[1733722761089,0.52180803,232.56,232.38,0.64519052]
[1733722761469,0.52180803,232.56,232.4,0.12549]
[1733722761655,0.52180803,232.56,232.4,0.77069965]
[1733722762077,0.52180803,232.56,232.4,20.77069965]
[1733722763087,0.52180803,232.56,232.41,6.1463]
[1733722763784,0.52180803,232.56,232.42,0.64520268]
[1733722763991,0.52180803,232.59,232.43,1.5449]
[1733722764196,0.52180803,232.59,232.44,0.64510318]
[1733722765067,0.64729803,232.61,232.44,0.64510318]
[1733722765490,0.12549,232.6,232.44,0.64510318]
[1733722765711,0.52180803,232.59,232.44,0.64510318]
[1733722766583,0.12549,232.59,232.44,0.64510318]
[1733722768196,0.52180803,232.58,232.44,0.64510318]
[1733722768585,0.25098,232.57,232.43,1.5449]
[1733722768914,20.0,232.54,232.43,1.5449]
[1733722769085,0.52180803,232.53,232.43,1.5449]
[1733722773723,0.52180803,232.53,232.41,6.1463]